[Event "Titled Tuesday Blitz March 21 Early 2023"]
[White "Vlassov, Nikolai"]
[Black "Donskov, Anatoly"]
[WhiteFideId "4103360"]
[BlackFideId "24143413"]
[WhiteElo "2324"]
[BlackElo "2247"]
[Result "1-0"]
[Round "11"]
[TimeControl "180+2"]
[Date "2023.03.21"]
[WhiteClock "0:00:48"]
[BlackClock "0:00:17"]

1. e4 {[%clk 0:03:00]}  c5 {[%clk 0:02:59]} 2. c3 {[%clk 0:03:00]}  d5 {[%clk 0:02:59]} 3. exd5 {[%clk 0:03:01]}  Qxd5 {[%clk 0:03:00]} 4. d4 {[%clk 0:03:01]}  Nf6 {[%clk 0:03:00]} 5. Nf3 {[%clk 0:03:01]}  e6 {[%clk 0:03:00]} 6. a3 {[%clk 0:03:01]}  cxd4 {[%clk 0:02:56]} 7. cxd4 {[%clk 0:03:01]}  Nc6 {[%clk 0:02:55]} 8. Nc3 {[%clk 0:03:01]}  Qd6 {[%clk 0:02:55]} 9. Be3 {[%clk 0:03:02]}  b6 {[%clk 0:02:55]} 10. Qc2 {[%clk 0:03:01]}  Bb7 {[%clk 0:02:55]} 11. Ne5 {[%clk 0:02:32]}  Rc8 {[%clk 0:02:26]} 12. Nxc6 {[%clk 0:01:55]}  Bxc6 {[%clk 0:02:21]} 13. Ba6 {[%clk 0:01:54]}  Rd8 {[%clk 0:02:09]} 14. Nb5 {[%clk 0:01:42]}  Qd7 {[%clk 0:01:59]} 15. Nxa7 {[%clk 0:01:39]}  Be4 {[%clk 0:01:59]} 16. Qxe4 {[%clk 0:01:31]}  Nxe4 {[%clk 0:01:58]} 17. Bb5 {[%clk 0:01:31]}  Nd6 {[%clk 0:01:26]} 18. Bxd7+ {[%clk 0:01:27]}  Kxd7 {[%clk 0:01:27]} 19. Rc1 {[%clk 0:01:19]}  Ra8 {[%clk 0:01:00]} 20. Nc6 {[%clk 0:01:18]}  Rc8 {[%clk 0:01:00]} 21. Ne5+ {[%clk 0:01:18]}  Kd8 {[%clk 0:00:56]} 22. Ke2 {[%clk 0:01:14]}  f6 {[%clk 0:00:54]} 23. Rxc8+ {[%clk 0:01:12]}  Kxc8 {[%clk 0:00:55]} 24. Rc1+ {[%clk 0:01:12]}  Kb7 {[%clk 0:00:55]} 25. Nc6 {[%clk 0:00:59]}  g5 {[%clk 0:00:48]} 26. Nd8+ {[%clk 0:00:58]}  Ka6 {[%clk 0:00:21]} 27. Nxe6 {[%clk 0:00:55]}  Be7 {[%clk 0:00:18]} 28. Rc7 {[%clk 0:00:52]}  Re8 {[%clk 0:00:17]} 29. Ng7 {[%clk 0:00:48]} 1-0


[Site "https://www.chess.com"]

[Event "Titled Tuesday Blitz March 21 Early 2023"]
[White "Blomqvist, Erik"]
[Black "cryptoguru02"]
[WhiteFideId "1709437"]
[WhiteElo "2436"]
[BlackElo "2469"]
[Result "0-1"]
[Round "11"]
[TimeControl "180+2"]
[Date "2023.03.21"]
[WhiteClock "0:00:30"]
[BlackClock "0:00:09"]

1. e4 {[%clk 0:03:00]}  e5 {[%clk 0:01:54]} 2. Nf3 {[%clk 0:02:58]}  Nc6 {[%clk 0:01:55]} 3. Bb5 {[%clk 0:02:57]}  g6 {[%clk 0:01:54]} 4. d4 {[%clk 0:02:56]}  exd4 {[%clk 0:01:52]} 5. Bg5 {[%clk 0:02:57]}  f6 {[%clk 0:01:52]} 6. Bf4 {[%clk 0:02:56]}  Bg7 {[%clk 0:01:52]} 7. O-O {[%clk 0:02:49]}  Nge7 {[%clk 0:01:49]} 8. c3 {[%clk 0:02:50]}  dxc3 {[%clk 0:01:45]} 9. Nxc3 {[%clk 0:02:47]}  O-O {[%clk 0:01:44]} 10. Qd2 {[%clk 0:02:43]}  d6 {[%clk 0:01:44]} 11. h3 {[%clk 0:02:42]}  Be6 {[%clk 0:01:43]} 12. Rfe1 {[%clk 0:02:40]}  Ne5 {[%clk 0:01:42]} 13. Nd4 {[%clk 0:02:38]}  Bf7 {[%clk 0:01:41]} 14. Rad1 {[%clk 0:02:33]}  a6 {[%clk 0:01:41]} 15. Ba4 {[%clk 0:02:33]}  b5 {[%clk 0:01:40]} 16. Bb3 {[%clk 0:02:30]}  Bxb3 {[%clk 0:01:37]} 17. axb3 {[%clk 0:02:30]}  Qd7 {[%clk 0:01:37]} 18. Nd5 {[%clk 0:02:29]}  Rae8 {[%clk 0:01:34]} 19. Rc1 {[%clk 0:02:24]}  c5 {[%clk 0:01:33]} 20. Nxe7+ {[%clk 0:02:15]}  Rxe7 {[%clk 0:01:31]} 21. Nc2 {[%clk 0:02:16]}  Qe6 {[%clk 0:01:23]} 22. Ne3 {[%clk 0:02:14]}  Rd7 {[%clk 0:01:10]} 23. Nd5 {[%clk 0:02:11]}  f5 {[%clk 0:01:08]} 24. exf5 {[%clk 0:01:59]}  Rxf5 {[%clk 0:01:08]} 25. Bg3 {[%clk 0:01:54]}  Nf3+ {[%clk 0:01:00]} 26. gxf3 {[%clk 0:01:52]}  Qxd5 {[%clk 0:01:00]} 27. Qe3 {[%clk 0:01:40]}  Rdf7 {[%clk 0:00:41]} 28. Rcd1 {[%clk 0:01:40]}  Qxf3 {[%clk 0:00:40]} 29. Qe8+ {[%clk 0:01:36]}  Rf8 {[%clk 0:00:38]} 30. Qe6+ {[%clk 0:01:36]}  R5f7 {[%clk 0:00:32]} 31. Rxd6 {[%clk 0:01:33]}  Bd4 {[%clk 0:00:32]} 32. Rxd4 {[%clk 0:01:26]}  cxd4 {[%clk 0:00:33]} 33. Qxa6 {[%clk 0:01:24]}  Qxb3 {[%clk 0:00:29]} 34. Qd6 {[%clk 0:01:22]}  d3 {[%clk 0:00:27]} 35. Re3 {[%clk 0:01:15]}  Qxb2 {[%clk 0:00:22]} 36. Rxd3 {[%clk 0:01:12]}  Rxf2 {[%clk 0:00:20]} 37. Qe6+ {[%clk 0:00:53]}  R2f7 {[%clk 0:00:17]} 38. Rf3 {[%clk 0:00:50]}  Qc1+ {[%clk 0:00:13]} 39. Kh2 {[%clk 0:00:49]}  Qc4 {[%clk 0:00:13]} 40. Qxc4 {[%clk 0:00:47]}  bxc4 {[%clk 0:00:14]} 41. Rc3 {[%clk 0:00:48]}  Rc8 {[%clk 0:00:14]} 42. Be5 {[%clk 0:00:47]}  Rd7 {[%clk 0:00:15]} 43. Rc1 {[%clk 0:00:46]}  Rd3 {[%clk 0:00:15]} 44. Ra1 {[%clk 0:00:46]}  Re3 {[%clk 0:00:14]} 45. Bd4 {[%clk 0:00:46]}  Re4 {[%clk 0:00:14]} 46. Bc3 {[%clk 0:00:45]}  Re3 {[%clk 0:00:14]} 47. Bd4 {[%clk 0:00:45]}  Re4 {[%clk 0:00:15]} 48. Bc3 {[%clk 0:00:46]}  Re2+ {[%clk 0:00:15]} 49. Kg1 {[%clk 0:00:45]}  Rd8 {[%clk 0:00:16]} 50. Rc1 {[%clk 0:00:42]}  Rd3 {[%clk 0:00:15]} 51. Be1 {[%clk 0:00:41]}  c3 {[%clk 0:00:14]} 52. Bxc3 {[%clk 0:00:40]}  Rxh3 {[%clk 0:00:14]} 53. Bd4 {[%clk 0:00:38]}  Rd3 {[%clk 0:00:14]} 54. Bf2 {[%clk 0:00:35]}  Rdd2 {[%clk 0:00:12]} 55. Ba7 {[%clk 0:00:32]}  Rg2+ {[%clk 0:00:10]} 56. Kf1 {[%clk 0:00:33]}  Rh2 {[%clk 0:00:09]} 57. Kg1 {[%clk 0:00:30]}  Rdg2+ {[%clk 0:00:08]} 58. Kf1 {[%clk 0:00:30]}  Rh1+ {[%clk 0:00:09]} 0-1


[Site "https://www.chess.com"]

[Event "Titled Tuesday Blitz March 21 Early 2023"]
[White "Pinheiro, Iung Alicio de O."]
[Black "Kubatko, Ivan"]
[WhiteFideId "2104350"]
[BlackFideId "24111473"]
[WhiteElo "2283"]
[BlackElo "2285"]
[Result "0-1"]
[Round "11"]
[TimeControl "180+2"]
[Date "2023.03.21"]
[WhiteClock "0:00:03"]
[BlackClock "0:00:05"]

1. d4 {[%clk 0:03:00]}  d5 {[%clk 0:02:57]} 2. c4 {[%clk 0:03:00]}  e6 {[%clk 0:02:53]} 3. Nc3 {[%clk 0:02:58]}  c5 {[%clk 0:02:53]} 4. e3 {[%clk 0:02:50]}  Nf6 {[%clk 0:02:53]} 5. Nf3 {[%clk 0:02:50]}  a6 {[%clk 0:02:53]} 6. dxc5 {[%clk 0:02:41]}  Bxc5 {[%clk 0:02:52]} 7. a3 {[%clk 0:02:42]}  Nc6 {[%clk 0:02:48]} 8. b4 {[%clk 0:02:40]}  Bd6 {[%clk 0:02:48]} 9. Bb2 {[%clk 0:02:36]}  O-O {[%clk 0:02:47]} 10. cxd5 {[%clk 0:02:25]}  exd5 {[%clk 0:02:47]} 11. Be2 {[%clk 0:02:25]}  Re8 {[%clk 0:02:44]} 12. O-O {[%clk 0:02:24]}  Bg4 {[%clk 0:02:36]} 13. h3 {[%clk 0:02:20]}  Bh5 {[%clk 0:02:34]} 14. Nh4 {[%clk 0:02:17]}  Bxe2 {[%clk 0:02:20]} 15. Nxe2 {[%clk 0:02:18]}  Ne4 {[%clk 0:02:13]} 16. Nf3 {[%clk 0:01:56]}  Re6 {[%clk 0:01:45]} 17. Ned4 {[%clk 0:01:32]}  Rg6 {[%clk 0:01:31]} 18. Nxc6 {[%clk 0:01:30]}  bxc6 {[%clk 0:01:31]} 19. Rc1 {[%clk 0:01:22]}  a5 {[%clk 0:01:04]} 20. Qd4 {[%clk 0:01:13]}  axb4 {[%clk 0:01:02]} 21. axb4 {[%clk 0:01:14]}  Rb8 {[%clk 0:00:52]} 22. Bc3 {[%clk 0:00:14]}  Nxc3 {[%clk 0:00:51]} 23. Rxc3 {[%clk 0:00:12]}  Rxb4 {[%clk 0:00:49]} 24. Qd3 {[%clk 0:00:12]}  Bb8 {[%clk 0:00:33]} 25. Rfc1 {[%clk 0:00:11]}  Qd7 {[%clk 0:00:25]} 26. Kf1 {[%clk 0:00:09]}  h6 {[%clk 0:00:22]} 27. Qc2 {[%clk 0:00:09]}  Rb6 {[%clk 0:00:15]} 28. Nd4 {[%clk 0:00:09]}  Be5 {[%clk 0:00:15]} 29. Rxc6 {[%clk 0:00:08]}  Bxd4 {[%clk 0:00:11]} 30. Rxg6 {[%clk 0:00:03]}  Rxg6 {[%clk 0:00:09]} 31. exd4 {[%clk 0:00:03]}  Qe6 {[%clk 0:00:05]} 32. Qc8+ {[%clk 0:00:03]}  Kh7 {[%clk 0:00:05]} 0-1


[Site "https://www.chess.com"]

[Event "Titled Tuesday Blitz March 21 Early 2023"]
[White "Raahul V S"]
[Black "Harriott, Tyrell"]
[WhiteFideId "25035525"]
[BlackFideId "2086484"]
[WhiteElo "2168"]
[BlackElo "2107"]
[Result "1-0"]
[Round "11"]
[TimeControl "180+2"]
[Date "2023.03.21"]
[WhiteClock "0:01:45"]
[BlackClock "0:01:10"]

1. c4 {[%clk 0:03:00]}  e6 {[%clk 0:02:59]} 2. g3 {[%clk 0:02:57]}  d5 {[%clk 0:02:59]} 3. Bg2 {[%clk 0:02:58]}  f5 {[%clk 0:02:58]} 4. Nf3 {[%clk 0:02:53]}  Nf6 {[%clk 0:02:58]} 5. O-O {[%clk 0:02:52]}  Bd6 {[%clk 0:02:57]} 6. b3 {[%clk 0:02:48]}  f4 {[%clk 0:02:57]} 7. d4 {[%clk 0:02:46]}  fxg3 {[%clk 0:02:56]} 8. fxg3 {[%clk 0:02:46]}  O-O {[%clk 0:02:53]} 9. Nc3 {[%clk 0:02:44]}  c6 {[%clk 0:02:51]} 10. Qd3 {[%clk 0:02:42]}  Nbd7 {[%clk 0:02:48]} 11. e4 {[%clk 0:02:38]}  e5 {[%clk 0:02:48]} 12. Ng5 {[%clk 0:02:28]}  exd4 {[%clk 0:02:43]} 13. Ne6 {[%clk 0:02:18]}  Ne5 {[%clk 0:02:42]} 14. Qxd4 {[%clk 0:02:11]}  Bxe6 {[%clk 0:02:41]} 15. exd5 {[%clk 0:02:12]}  Bf7 {[%clk 0:02:23]} 16. Bf4 {[%clk 0:02:07]}  Qc7 {[%clk 0:02:20]} 17. c5 {[%clk 0:02:02]}  Nf3+ {[%clk 0:01:35]} 18. Rxf3 {[%clk 0:02:01]}  Bxf4 {[%clk 0:01:36]} 19. Rxf4 {[%clk 0:02:02]}  cxd5 {[%clk 0:01:34]} 20. Nxd5 {[%clk 0:02:00]}  Nxd5 {[%clk 0:01:32]} 21. Bxd5 {[%clk 0:01:59]}  Bxd5 {[%clk 0:01:30]} 22. Qxd5+ {[%clk 0:02:00]}  Kh8 {[%clk 0:01:28]} 23. Raf1 {[%clk 0:02:01]}  Rfd8 {[%clk 0:01:26]} 24. Rf7 {[%clk 0:01:51]}  Qa5 {[%clk 0:01:10]} 25. b4 {[%clk 0:01:45]} 1-0


[Site "https://www.chess.com"]

[Event "Titled Tuesday Blitz March 21 Early 2023"]
[White "Berezin, Viktor"]
[Black "Jovic, Stanoje"]
[WhiteFideId "14107872"]
[BlackFideId "905020"]
[WhiteElo "2310"]
[BlackElo "2236"]
[Result "0-1"]
[Round "11"]
[TimeControl "180+2"]
[Date "2023.03.21"]
[WhiteClock "0:00:03"]
[BlackClock "0:00:07"]

1. d4 {[%clk 0:03:00]}  Nf6 {[%clk 0:02:59]} 2. c4 {[%clk 0:03:00]}  e6 {[%clk 0:02:59]} 3. Nf3 {[%clk 0:03:01]}  b6 {[%clk 0:02:59]} 4. g3 {[%clk 0:03:01]}  Ba6 {[%clk 0:02:59]} 5. Bg2 {[%clk 0:03:02]}  Bxc4 {[%clk 0:02:58]} 6. Nc3 {[%clk 0:02:56]}  Ba6 {[%clk 0:02:54]} 7. O-O {[%clk 0:02:54]}  Bb7 {[%clk 0:02:53]} 8. Re1 {[%clk 0:02:54]}  d5 {[%clk 0:02:52]} 9. Ne5 {[%clk 0:02:53]}  Nbd7 {[%clk 0:02:50]} 10. Qa4 {[%clk 0:02:52]}  a6 {[%clk 0:02:44]} 11. e4 {[%clk 0:02:42]}  b5 {[%clk 0:02:43]} 12. Qc2 {[%clk 0:02:42]}  b4 {[%clk 0:02:37]} 13. exd5 {[%clk 0:02:31]}  Nxe5 {[%clk 0:02:18]} 14. dxe5 {[%clk 0:02:04]}  Nxd5 {[%clk 0:02:17]} 15. Ne4 {[%clk 0:02:02]}  Be7 {[%clk 0:02:11]} 16. Nc5 {[%clk 0:01:58]}  Bxc5 {[%clk 0:02:01]} 17. Qxc5 {[%clk 0:01:59]}  Qe7 {[%clk 0:02:00]} 18. Qc2 {[%clk 0:01:52]}  O-O {[%clk 0:01:57]} 19. h4 {[%clk 0:01:48]}  c5 {[%clk 0:01:56]} 20. Bg5 {[%clk 0:01:47]}  Qc7 {[%clk 0:01:41]} 21. Rac1 {[%clk 0:01:47]}  Rac8 {[%clk 0:01:39]} 22. h5 {[%clk 0:01:30]}  h6 {[%clk 0:01:37]} 23. Bd2 {[%clk 0:01:30]}  a5 {[%clk 0:01:34]} 24. Qe4 {[%clk 0:01:14]}  c4 {[%clk 0:01:19]} 25. Qg4 {[%clk 0:01:12]}  Kh8 {[%clk 0:01:18]} 26. Kh2 {[%clk 0:00:44]}  Qb6 {[%clk 0:01:11]} 27. Rf1 {[%clk 0:00:15]}  f5 {[%clk 0:00:54]} 28. exf6 {[%clk 0:00:13]}  Rxf6 {[%clk 0:00:54]} 29. f4 {[%clk 0:00:09]}  c3 {[%clk 0:00:47]} 30. bxc3 {[%clk 0:00:09]}  bxc3 {[%clk 0:00:47]} 31. Rb1 {[%clk 0:00:08]}  Qc7 {[%clk 0:00:31]} 32. Bc1 {[%clk 0:00:07]}  c2 {[%clk 0:00:29]} 33. Rb3 {[%clk 0:00:07]}  a4 {[%clk 0:00:24]} 34. Rbf3 {[%clk 0:00:05]}  Ne7 {[%clk 0:00:21]} 35. Re3 {[%clk 0:00:04]}  Bxg2 {[%clk 0:00:19]} 36. Kxg2 {[%clk 0:00:05]}  Nf5 {[%clk 0:00:19]} 37. Re5 {[%clk 0:00:04]}  Qc6+ {[%clk 0:00:18]} 38. Kh2 {[%clk 0:00:04]}  Rd8 {[%clk 0:00:17]} 39. Qe2 {[%clk 0:00:05]}  Qd7 {[%clk 0:00:13]} 40. Rf2 {[%clk 0:00:03]}  Nd4 {[%clk 0:00:12]} 41. Qg4 {[%clk 0:00:02]}  Qf7 {[%clk 0:00:10]} 42. Bb2 {[%clk 0:00:02]}  Rf5 {[%clk 0:00:10]} 43. Bxd4 {[%clk 0:00:02]}  c1=Q {[%clk 0:00:08]} 44. Rxf5 {[%clk 0:00:01]}  exf5 {[%clk 0:00:08]} 45. Qf3 {[%clk 0:00:01]}  Qcc7 {[%clk 0:00:07]} 46. Re2 {[%clk 0:00:02]}  Qb7 {[%clk 0:00:07]} 47. Be5 {[%clk 0:00:03]}  Qxf3 {[%clk 0:00:06]} 48. Rg2 {[%clk 0:00:03]}  Q7xh5+ {[%clk 0:00:07]} 49. Kg1 {[%clk 0:00:03]}  Rd1# {[%clk 0:00:07]} 0-1


[Site "https://www.chess.com"]

[Event "Titled Tuesday Blitz March 21 Early 2023"]
[White "Omelja, Artem"]
[Black "Fule, Simon"]
[WhiteFideId "14119846"]
[BlackFideId "787515"]
[WhiteElo "2404"]
[BlackElo "2396"]
[Result "0-1"]
[Round "11"]
[TimeControl "180+2"]
[Date "2023.03.21"]
[WhiteClock "0:00:01"]
[BlackClock "0:00:04"]

1. e4 {[%clk 0:03:00]}  e5 {[%clk 0:02:59]} 2. Nf3 {[%clk 0:02:56]}  Nc6 {[%clk 0:03:00]} 3. d4 {[%clk 0:02:56]}  exd4 {[%clk 0:03:00]} 4. Nxd4 {[%clk 0:02:57]}  Nf6 {[%clk 0:03:00]} 5. Nc3 {[%clk 0:02:56]}  Bb4 {[%clk 0:03:00]} 6. Nxc6 {[%clk 0:02:57]}  bxc6 {[%clk 0:03:01]} 7. Bd3 {[%clk 0:02:57]}  O-O {[%clk 0:03:00]} 8. O-O {[%clk 0:02:57]}  d5 {[%clk 0:03:01]} 9. exd5 {[%clk 0:02:57]}  cxd5 {[%clk 0:03:02]} 10. Bg5 {[%clk 0:02:57]}  c6 {[%clk 0:03:02]} 11. Qf3 {[%clk 0:02:57]}  Bd6 {[%clk 0:03:01]} 12. h3 {[%clk 0:02:57]}  Rb8 {[%clk 0:03:00]} 13. Rab1 {[%clk 0:02:53]}  h6 {[%clk 0:02:56]} 14. Bxf6 {[%clk 0:02:53]}  Qxf6 {[%clk 0:02:57]} 15. Qxf6 {[%clk 0:02:53]}  gxf6 {[%clk 0:02:58]} 16. Ne2 {[%clk 0:02:53]}  c5 {[%clk 0:02:54]} 17. c4 {[%clk 0:02:49]}  d4 {[%clk 0:02:51]} 18. Ng3 {[%clk 0:02:48]}  Bxg3 {[%clk 0:02:38]} 19. fxg3 {[%clk 0:02:48]}  Kg7 {[%clk 0:02:38]} 20. b3 {[%clk 0:02:48]}  Re8 {[%clk 0:02:37]} 21. Rbe1 {[%clk 0:02:47]}  Bb7 {[%clk 0:02:33]} 22. Kf2 {[%clk 0:02:47]}  Bc6 {[%clk 0:02:29]} 23. Rb1 {[%clk 0:02:36]}  Re3 {[%clk 0:02:27]} 24. Rfd1 {[%clk 0:02:36]}  Rbe8 {[%clk 0:02:26]} 25. b4 {[%clk 0:02:35]}  Ba4 {[%clk 0:02:13]} 26. Rd2 {[%clk 0:02:33]}  Rb8 {[%clk 0:02:03]} 27. a3 {[%clk 0:02:26]}  a5 {[%clk 0:02:01]} 28. b5 {[%clk 0:02:26]}  Rb6 {[%clk 0:01:47]} 29. g4 {[%clk 0:02:23]}  Kf8 {[%clk 0:01:32]} 30. Re1 {[%clk 0:02:15]}  Rbe6 {[%clk 0:01:29]} 31. Ree2 {[%clk 0:02:14]}  Ke7 {[%clk 0:01:27]} 32. Bf5 {[%clk 0:02:04]}  R6e5 {[%clk 0:01:20]} 33. Rb2 {[%clk 0:02:03]}  Kd6 {[%clk 0:00:57]} 34. Rxe3 {[%clk 0:01:44]}  Rxe3 {[%clk 0:00:58]} 35. b6 {[%clk 0:01:30]}  Rb3 {[%clk 0:00:50]} 36. Rxb3 {[%clk 0:00:45]}  Bxb3 {[%clk 0:00:51]} 37. Bd3 {[%clk 0:00:45]}  Ba4 {[%clk 0:00:30]} 38. Kg3 {[%clk 0:00:20]}  Bc6 {[%clk 0:00:26]} 39. Bf5 {[%clk 0:00:20]}  Bb7 {[%clk 0:00:13]} 40. Bd3 {[%clk 0:00:12]}  Kc6 {[%clk 0:00:13]} 41. Kf4 {[%clk 0:00:12]}  Kxb6 {[%clk 0:00:13]} 42. g3 {[%clk 0:00:09]}  Bc8 {[%clk 0:00:13]} 43. h4 {[%clk 0:00:09]}  Kc6 {[%clk 0:00:11]} 44. g5 {[%clk 0:00:09]}  fxg5+ {[%clk 0:00:11]} 45. hxg5 {[%clk 0:00:10]}  hxg5+ {[%clk 0:00:11]} 46. Kxg5 {[%clk 0:00:11]}  Kd6 {[%clk 0:00:11]} 47. Kf6 {[%clk 0:00:12]}  Be6 {[%clk 0:00:10]} 48. Be2 {[%clk 0:00:09]}  Kd7 {[%clk 0:00:05]} 49. g4 {[%clk 0:00:09]}  Kd6 {[%clk 0:00:06]} 50. g5 {[%clk 0:00:10]}  Kd7 {[%clk 0:00:05]} 51. Bd3 {[%clk 0:00:10]}  Kd6 {[%clk 0:00:05]} 52. Bh7 {[%clk 0:00:10]}  Kd7 {[%clk 0:00:04]} 53. Bd3 {[%clk 0:00:05]}  Kd6 {[%clk 0:00:04]} 54. Be4 {[%clk 0:00:04]}  Bxc4 {[%clk 0:00:04]} 55. Bf5 {[%clk 0:00:01]}  Bd5 {[%clk 0:00:04]} 0-1


[Site "https://www.chess.com"]

[Event "Titled Tuesday Blitz March 21 Early 2023"]
[White "Villalba, Marcelo"]
[Black "Sovetbekova, Nurai"]
[WhiteFideId "3701859"]
[BlackFideId "13801910"]
[WhiteElo "2191"]
[BlackElo "1857"]
[Result "1-0"]
[Round "11"]
[TimeControl "180+2"]
[Date "2023.03.21"]
[WhiteClock "0:01:01"]
[BlackClock "0:00:10"]

1. e4 {[%clk 0:03:00]}  c5 {[%clk 0:03:00]} 2. Nf3 {[%clk 0:03:00]}  d6 {[%clk 0:03:00]} 3. d4 {[%clk 0:02:58]}  cxd4 {[%clk 0:03:01]} 4. Nxd4 {[%clk 0:02:59]}  Nf6 {[%clk 0:03:01]} 5. Nc3 {[%clk 0:02:59]}  a6 {[%clk 0:03:01]} 6. Bg5 {[%clk 0:03:00]}  e6 {[%clk 0:03:01]} 7. f4 {[%clk 0:03:00]}  Be7 {[%clk 0:03:01]} 8. Qf3 {[%clk 0:03:00]}  Qc7 {[%clk 0:03:01]} 9. O-O-O {[%clk 0:02:58]}  Nbd7 {[%clk 0:03:02]} 10. Be2 {[%clk 0:02:56]}  h6 {[%clk 0:02:53]} 11. Bh4 {[%clk 0:02:56]}  b5 {[%clk 0:02:46]} 12. Bxf6 {[%clk 0:02:54]}  Nxf6 {[%clk 0:02:22]} 13. e5 {[%clk 0:02:53]}  Bb7 {[%clk 0:02:22]} 14. Qg3 {[%clk 0:02:54]}  dxe5 {[%clk 0:02:15]} 15. fxe5 {[%clk 0:02:52]}  Nd5 {[%clk 0:01:56]} 16. Nxe6 {[%clk 0:02:37]}  fxe6 {[%clk 0:01:50]} 17. Qg6+ {[%clk 0:02:11]}  Kd7 {[%clk 0:01:17]} 18. Nxd5 {[%clk 0:01:56]}  Bxd5 {[%clk 0:01:12]} 19. Rxd5+ {[%clk 0:01:55]}  exd5 {[%clk 0:01:07]} 20. Bg4+ {[%clk 0:01:54]}  Kd8 {[%clk 0:01:02]} 21. Rd1 {[%clk 0:01:46]}  Qxe5 {[%clk 0:00:46]} 22. Qc6 {[%clk 0:01:18]}  Bg5+ {[%clk 0:00:20]} 23. Kb1 {[%clk 0:01:15]}  Ke7 {[%clk 0:00:20]} 24. Rxd5 {[%clk 0:01:04]}  Qe1+ {[%clk 0:00:20]} 25. Rd1 {[%clk 0:01:04]}  Qe5 {[%clk 0:00:15]} 26. Rd7+ {[%clk 0:01:02]}  Ke8 {[%clk 0:00:11]} 27. Qxa8+ {[%clk 0:01:01]}  Bd8 {[%clk 0:00:10]} 28. Qxd8# {[%clk 0:01:01]} 1-0


[Site "https://www.chess.com"]

[Event "Titled Tuesday Blitz March 21 Early 2023"]
[White "Lehtosaari, Mauri"]
[Black "Bogaudinov, Rushan"]
[WhiteFideId "501999"]
[BlackFideId "4129288"]
[WhiteElo "2525"]
[BlackElo "1949"]
[Result "0-1"]
[Round "11"]
[TimeControl "180+2"]
[Date "2023.03.21"]
[WhiteClock "0:00:02"]
[BlackClock "0:00:15"]

1. d4 {[%clk 0:03:00]}  d5 {[%clk 0:02:56]} 2. Nf3 {[%clk 0:02:59]}  Nf6 {[%clk 0:02:56]} 3. Bg5 {[%clk 0:02:58]}  e6 {[%clk 0:02:53]} 4. Nbd2 {[%clk 0:02:58]}  Be7 {[%clk 0:02:53]} 5. e3 {[%clk 0:02:59]}  b6 {[%clk 0:02:52]} 6. Ne5 {[%clk 0:02:56]}  Bb7 {[%clk 0:02:51]} 7. Bd3 {[%clk 0:02:54]}  c5 {[%clk 0:02:47]} 8. Bb5+ {[%clk 0:02:45]}  Nfd7 {[%clk 0:02:46]} 9. Bxe7 {[%clk 0:02:33]}  Qxe7 {[%clk 0:02:47]} 10. O-O {[%clk 0:02:27]}  O-O {[%clk 0:02:41]} 11. Nxd7 {[%clk 0:02:25]}  Nxd7 {[%clk 0:02:39]} 12. c3 {[%clk 0:02:25]}  a6 {[%clk 0:02:25]} 13. Bd3 {[%clk 0:02:23]}  e5 {[%clk 0:02:24]} 14. a4 {[%clk 0:02:13]}  e4 {[%clk 0:02:22]} 15. Be2 {[%clk 0:02:11]}  f5 {[%clk 0:02:22]} 16. dxc5 {[%clk 0:01:55]}  bxc5 {[%clk 0:02:18]} 17. f3 {[%clk 0:01:39]}  Bc6 {[%clk 0:02:14]} 18. f4 {[%clk 0:01:33]}  Rab8 {[%clk 0:02:05]} 19. Qc2 {[%clk 0:01:27]}  a5 {[%clk 0:02:00]} 20. Rfd1 {[%clk 0:01:16]}  c4 {[%clk 0:01:59]} 21. Nf1 {[%clk 0:01:14]}  Nc5 {[%clk 0:01:59]} 22. Ng3 {[%clk 0:01:13]}  Nd3 {[%clk 0:01:48]} 23. Bxd3 {[%clk 0:01:10]}  exd3 {[%clk 0:01:47]} 24. Qf2 {[%clk 0:01:08]}  g6 {[%clk 0:01:43]} 25. Nf1 {[%clk 0:01:06]}  Qd7 {[%clk 0:01:40]} 26. Nd2 {[%clk 0:01:03]}  Rxb2 {[%clk 0:01:35]} 27. Qg3 {[%clk 0:00:58]}  Bxa4 {[%clk 0:01:31]} 28. Nf3 {[%clk 0:00:55]}  Bxd1 {[%clk 0:01:30]} 29. Rxd1 {[%clk 0:00:56]}  Qa4 {[%clk 0:01:24]} 30. Rf1 {[%clk 0:00:40]}  d2 {[%clk 0:01:18]} 31. Qf2 {[%clk 0:00:28]}  d1=Q {[%clk 0:01:16]} 32. Qxb2 {[%clk 0:00:29]}  Qdb3 {[%clk 0:01:05]} 33. Qd2 {[%clk 0:00:28]}  Rd8 {[%clk 0:01:02]} 34. Qd4 {[%clk 0:00:20]}  Qe8 {[%clk 0:00:56]} 35. Ne5 {[%clk 0:00:19]}  a4 {[%clk 0:00:54]} 36. Qa7 {[%clk 0:00:17]}  a3 {[%clk 0:00:53]} 37. h4 {[%clk 0:00:16]}  a2 {[%clk 0:00:51]} 38. h5 {[%clk 0:00:17]}  Ra8 {[%clk 0:00:44]} 39. Qc7 {[%clk 0:00:12]}  a1=Q {[%clk 0:00:39]} 40. Rxa1 {[%clk 0:00:09]}  Rxa1+ {[%clk 0:00:39]} 41. Kh2 {[%clk 0:00:09]}  Qd1 {[%clk 0:00:37]} 42. Nf3 {[%clk 0:00:08]}  Qh1+ {[%clk 0:00:35]} 43. Kg3 {[%clk 0:00:07]}  Qxh5 {[%clk 0:00:34]} 44. Qd6 {[%clk 0:00:05]}  Rd1 {[%clk 0:00:30]} 45. Ng5 {[%clk 0:00:02]}  Qxe3+ {[%clk 0:00:24]} 46. Nf3 {[%clk 0:00:03]}  Qe8 {[%clk 0:00:20]} 47. Qc7 {[%clk 0:00:01]}  Qg4+ {[%clk 0:00:20]} 48. Kh2 {[%clk 0:00:02]}  Rd3 {[%clk 0:00:15]} 0-1


[Site "https://www.chess.com"]